Cogmind - Beta 15 @@@ ROGUE MODE // 2025.10.04 @ 07:23:11 Player: mgobin-777 Result: Self-destructed Performance ------------- Evolutions (1) 500 Regions Visited (2) 400 Robots Destroyed (27) 135 Value Destroyed (567) 567 Prototype IDs (3) 60 Alien Tech Used (0) 0 Bonus (0) 0 TOTAL SCORE: 1662 Bonus ------- None Cogmind --------- Core Integrity 326/400 Matter 215/300 Energy 250/250 System Corruption 0% Temperature Cool (0) Movement Treading (160) Location -9/Materials Parts ------- > --- POWER (1) -------- Ion Engine > --- PROPULSION (2) --- Improved Treads Improved Treads > --- UTILITY (3) ------ Small Storage Unit Signal Interpreter Improved Targeting Computer > --- WEAPON (3) ------- Particle Cannon Particle Cannon Particle Cannon > --- INVENTORY (8) ---- Improved Treads Improved Treads Improved Targeting Computer Particle Cannon Rocket Launcher Peak State ------------ > --- POWER ------------ Ion Engine > --- PROPULSION ------- Improved Treads Improved Treads > --- UTILITY ---------- Small Storage Unit Signal Interpreter Improved Targeting Computer > --- WEAPON ----------- Particle Cannon Particle Cannon Particle Cannon > --- INVENTORY -------- Improved Treads Improved Treads Improved Targeting Computer Particle Cannon Rocket Launcher [Rating: 16] Favorites ----------- Power Ion Engine Engine Ion Engine Propulsion Light Treads Treads Light Treads Utility Small Storage Unit Storage Small Storage Unit Processor Signal Interpreter Weapon Light Assault Rifle Energy Gun Small Laser Energy Cannon Particle Cannon Ballistic Gun Light Assault Rifle Launcher Grenade Launcher Build | -11 -10 -9 ------- Run | Yrd Mat Mat Slots Evolved 2 | . . 2 Power . | . . . Propulsion . | . . . Utility 1 | . . 1 Weapon 1 | . . 1 Parts Attached 18 | 6 10 2 Power 3 | 1 2 . Engine 3 | 1 2 . Core . | . . . Reactor . | . . . Propulsion 4 | 2 2 . Treads 4 | 2 2 . Leg . | . . . Wheel . | . . . Hover . | . . . Flight . | . . . Utility 3 | 1 1 1 Device . | . . . Storage 1 | 1 . . Processor 2 | . 1 1 Hackware . | . . . Protection . | . . . Artifact . | . . . Weapon 8 | 2 5 1 Energy Gun 3 | 1 2 . Energy Cannon 3 | . 2 1 Ballistic Gun 1 | 1 . . Ballistic Cannon . | . . . Launcher 1 | . 1 . Special Weapon . | . . . Impact Weapon . | . . . Slashing Weapon . | . . . Piercing Weapon . | . . . Special Melee Weapon . | . . . Unidentified Prototypes . | . . . Parts Lost 5 | . 5 . Power 2 | . 2 . Propulsion 1 | . 1 . Utility . | . . . Weapon 2 | . 2 . Highest Loss Streak 2 | . 2 . To Critical Strikes . | . . . Average Backups 2 | . 2 5 Power . | . . . Propulsion . | . . 2 Utility . | . . 1 Weapon 1 | . 1 2 Tool/Special . | . . . Unused Backups 4 | 1 . 3 Power . | . . . Propulsion 2 | . . 2 Utility 1 | . . 1 Weapon 1 | 1 . . Tool/Special . | . . . Average Slot Usage (%) 88 | . 87 99 Engine 8 | . 8 11 Treads 24 | . 24 22 Storage 13 | . 14 11 Processor 13 | . 13 22 Energy Gun 12 | . 13 . Energy Cannon 2 | . . 32 Ballistic Gun 9 | . 10 . Launcher 1 | . 1 . Peak Build Rating 16 | 6 12 16 Average Rating 7 | 4 6 15 On Entrance 6 | . 6 12 Naked Turns . | . . . Heaviest Build 22 | 11 18 22 Greatest Support 46 | 40 46 46 Greatest Overweight (x) . | . . . Average Overweight (x) . | . . . Largest Inventory Capacity 8 | 8 8 8 Average Capacity 7 | 6 8 8 Most Carried 7 | 4 7 6 Average Carried 2 | . 2 5 Final Capacity 8 | 8 8 8 Final Carried 7 | . 7 5 Class Distribution -------------------- 90% | Mutant 9% | Gunner Dominant Class ---------------- Mutant | -10/Materials Gunner | -9/Materials Resources | -11 -10 -9 ----------- Run | Yrd Mat Mat Matter Collected 459 | 142 302 15 Remotely . | . . . Salvage Created 686 | 85 563 38 Parts 53 | 3 43 7 Haulers Intercepted . | . . . Recyclers Shooed . | . . . Parts Field Recycled . | . . . Retrieved Matter . | . . . Parts Self-Destructed . | . . . Prevented . | . . . Kills | -11 -10 -9 ------- Run | Yrd Mat Mat Combat Hostiles Destroyed 21 | . 18 3 Guns 12 | . 12 . Cannons 3 | . . 3 AOE 6 | . 6 . Classes Destroyed 5 | 1 4 . Worker 2 | . 1 1 Builder 3 | . 3 . Recycler 1 | 1 . . Swarmer 9 | . 6 3 Grunt 12 | . 12 . Best Kill Streak 5 | 1 5 4 Combat Bots Only 4 | . 4 3 Max Kills in Single Turn 3 | 1 3 1 Gunslinging . | . . . Exploded 3 | . 3 . Melee . | . . . Uniques/NPCs Destroyed . | . . . Combat | -11 -10 -9 -------- Run | Yrd Mat Mat Hostile Shots Fired 115 | . 101 14 Missed 33 | . 31 2 Hits 82 | . 70 12 Projectile 82 | . 70 12 Damage Taken 962 | . 811 151 Core 246 | . 172 74 Absorbed by Shields . | . . . Core Remaining (%) 65 | 100 31 . Volleys Fired 82 | 4 72 6 Largest 3 | 2 2 3 Hottest 204 | 70 80 204 Shots Fired 146 | 8 120 18 Gun 124 | 8 116 . Cannon 18 | . . 18 Launcher 4 | . 4 . Special . | . . . Kinetic 54 | 4 50 . Thermal 73 | 4 51 18 Explosive 4 | . 4 . Electromagnetic 15 | . 15 . Robot Hit Streak 9 | 4 9 3 Robot Miss Streak 4 | 1 3 4 Penetration Max . | . . . Secondary Targets . | . . . Shots Hit Robots 84 | 7 71 6 Core Hits 46 | 2 41 3 Critical Kills . | . . . Critical Parts Destroyed . | . . . Critical Strikes 1 | . 1 . Burn 1 | . 1 . Melee Attacks . | . . . Impact . | . . . Slashing . | . . . Piercing . | . . . Sneak Attacks . | . . . Combat Hostiles . | . . . Follow-up Attacks . | . . . Damage Inflicted 1393 | 88 1145 160 Guns 857 | 82 775 . Cannons 143 | . . 143 Explosions 351 | . 351 . Melee . | . . . Ramming 42 | 6 19 17 Kinetic 273 | 32 241 . Thermal 611 | 50 418 143 Explosive 326 | . 326 . Electromagnetic 141 | . 141 . Impact . | . . . Slashing . | . . . Piercing . | . . . Highest Corruption . | . . . Average Corruption . | . . . Corruption Purged . | . . . Corruption Blocked . | . . . Overload Shots . | . . . Overflow Damage . | . . . Projectiles . | . . . Explosions . | . . . Melee . | . . . Knockbacks 1 | . . 1 Impact 1 | . . 1 Kinetic . | . . . Secondary . | . . . Self-Inflicted Damage 23 | . 23 . Shots 1 | . 1 . Rammed 8 | 1 6 1 Targets Rammed 9 | 1 6 2 Kicked . | . . . Crushed 1 | . . 1 Highest Temperature 602 | 80 132 602 Average Temperature 91 | 45 38 308 Received Heat Transfer 372 | . 372 . Effects 9 | . . 9 Shutdowns 2 | . . 2 Matter Decay 1 | . . 1 Short Circuit 1 | . . 1 Damage (major) 4 | . . 4 Damage (core) 1 | . . 1 Siege Activations . | . . . Martial Activations . | . . . Shielding Activations . | . . . Robots Disrupted . | . . . Combat Hostiles . | . . . Robots Corrupted . | . . . Combat Hostiles . | . . . Parts Fried 1 | . 1 . Impact Corruptions . | . . . Robots Melted . | . . . Combat Hostiles . | . . . Parts Melted . | . . . Heat Transferred 1560 | 148 1153 259 Parts Sabotaged . | . . . Parts Stolen . | . . . Parts Stripped . | . . . Power Chain Reactions 1 | . 1 . Alert | -11 -10 -9 ------- Run | Yrd Mat Mat Maximum Alert Level . | . . . Low Security (%) 100 | 100 100 100 Level 1 . | . . . Level 2 . | . . . Level 3 . | . . . Level 4 . | . . . Level 5 . | . . . High Security . | . . . Max Security . | . . . Peak Influence 164 | 5 164 90 Initial 45 | . . 45 Average 57 | . 59 57 Influence Increases 624 | 5 544 75 Destroy 0b10 Robot/C 420 | . 360 60 Destroy 0b10 Robot/NC 30 | 5 20 5 Destroy Leader 90 | . 80 10 Successful Hack 14 | . 14 . Disable Machine 30 | . 30 . Destroy Structure 40 | . 40 . Influence Decreases 554 | 5 436 113 Entered New Map 63 | . . 63 Time Decay 451 | 5 396 50 Lost Part 40 | . 40 . Squads Dispatched 4 | . 4 . Investigation 2 | . 2 . Extermination . | . . . Reinforcement 2 | . 2 . Assault . | . . . Garrison . | . . . Intercept . | . . . Searches Triggered . | . . . Construction Impeded . | . . . Haulers Reinforced . | . . . Active Scanning Responses . | . . . Cargo Convoy Interrupts . | . . . Stealth | -11 -10 -9 --------- Run | Yrd Mat Mat Distress Signals 1 | . 1 . Communications Jammed . | . . . Distress Signals . | . . . Times Spotted 33 | . 30 3 Peak Tracking Total 6 | . 6 3 Tactical Retreats . | . . . Traps | -11 -10 -9 ------- Run | Yrd Mat Mat Traps Triggered 2 | . 2 . Indirectly . | . . . Trap Hack Attempts . | . . . Triggered . | . . . Disarmed . | . . . Reprogrammed . | . . . Reused . | . . . Traps Extracted . | . . . Installed . | . . . Triggered . | . . . Machines | -11 -10 -9 ---------- Run | Yrd Mat Mat Machines Disabled 2 | . 2 . Max in Single Turn 1 | . 1 . Machines Repaired . | . . . Machines Dismantled . | . . . Machines Sabotaged . | . . . Overloaded Fab Kills . | . . . Hacking | -11 -10 -9 --------- Run | Yrd Mat Mat Machines Accessed 1 | . 1 . Terminals 1 | . 1 . Fabricators . | . . . Repair Stations . | . . . Recycling Units . | . . . Scanalyzers . | . . . Garrison Access . | . . . Total Hacks 2 | . 2 . Successful 1 | . 1 . Failed 1 | . 1 . Catastrophic . | . . . Database Lockouts . | . . . Manual . | . . . Terminals 2 | . 2 . Fabricators . | . . . Repair Stations . | . . . Recycling Units . | . . . Scanalyzers . | . . . Garrison Access . | . . . Terminal Hacks 1 | . 1 . Prototype ID Bank 1 | . 1 . Fabricator Hacks . | . . . Repair Station Hacks . | . . . Recycling Unit Hacks . | . . . Scanalyzer . | . . . Garrison Access Hacks . | . . . Unauthorized Hacks . | . . . Terminals . | . . . Fabricators . | . . . Repair Stations . | . . . Recycling Units . | . . . Scanalyzers . | . . . Garrison Access . | . . . Data Cores Recovered . | . . . Used . | . . . Hacking Detections 1 | . 1 . Full Trace Events . | . . . Feedback Events . | . . . Feedback Blocked . | . . . Robot Schematics Acquired . | . . . Robots Built . | . . . Authchips . | . . . Time . | . . . Total Robot Build Rating . | . . . Part Schematics Acquired . | . . . Parts Built . | . . . Authchips . | . . . Time . | . . . Total Part Build Rating . | . . . Parts Repaired . | . . . Time . | . . . Parts Recycled . | . . . Recycled Matter . | . . . Retrieved Matter . | . . . Retrieved Components . | . . . Parts Scanalyzed . | . . . Part Schematics Acquired . | . . . Parts Damaged . | . . . Bothacking | -11 -10 -9 ------------ Run | Yrd Mat Mat Used RIF Installer . | . . . Robots Hacked . | . . . Non-combat . | . . . Combat . | . . . Robot Hacks Applied . | . . . Relay Couplers Released . | . . . Fabnet Peak Effective % . | . . . Robots Rewired . | . . . Allies Hacked . | . . . Hacks Repelled . | . . . Allies | -11 -10 -9 -------- Run | Yrd Mat Mat Total Allies . | . . . Largest Group . | . . . Highest-Rated Group . | . . . Highest-Rated Ally . | . . . Total Orders . | . . . Ally Attacks . | . . . Total Damage . | . . . Kills . | . . . Allies Corrupted . | . . . Allies Melted . | . . . Intel | -11 -10 -9 ------- Run | Yrd Mat Mat Active Infowar (turns) . | . . . Robot Analysis Total . | . . . Derelict Logs Recovered . | . . . Drone Launches . | . . . Drone Recoveries . | . . . Exploration | -11 -10 -9 ------------- Run | Yrd Mat Mat Turns Passed 1735 | 56 1560 119 Spaces Moved 900 | 31 825 44 Core 17 | 17 . . Treads 883 | 14 825 44 Legs . | . . . Wheels . | . . . Hover . | . . . Flight . | . . . Fastest Speed 50 | 50 160 160 Average Speed 157 | 99 160 160 Slowest Speed 160 | 160 160 160 Overloaded Moves . | . . . Propulsion Burnouts . | . . . Robots Hopped . | . . . Potential Cave-ins . | . . . Cave-ins Triggered . | . . . Exploration Rate (%) 33 | 4 90 6 Regions Visited 2 Branch Regions . Pre-discovered Areas . | . . . Known Exits Taken 1 | . 1 . Unknown Exits Taken 1 | 1 . . Scrap Searched . | . . . Spaces Dug . | . . . Terrain Destroyed 39 | . 39 . Melee . | . . . Projectile . | . . . AOE 39 | . 39 . Terrain Rammed . | . . . Walls Destroyed . | . . . Machines Disabled . | . . . Actions | -11 -10 -9 --------- Run | Yrd Mat Mat Total 1076 | 49 950 77 Wait 35 | . 12 23 Move 899 | 31 824 44 Hop . | . . . Pick Up 24 | 7 17 . Fast Attach . | . . . Attach 15 | 6 7 2 Detach . | . . . Swap 8 | . 8 . Drop 5 | 1 4 . Fire 82 | 4 72 6 Melee . | . . . Ram . | . . . Kick . | . . . Crush 8 | . 6 2 Escape Stasis . | . . . Rewire . | . . . Trap . | . . . Miscellaneous . | . . . Route ------- -11/Scrapyard -10/Materials (discovered 5 exits: *Mat x3 / *Min / *Sub) -9/Materials (discovered 1 exit: *Sto) History --------- Turn | Location | Event 18 | -11/Scrapyard | Discovered new exit (range 16) 57 | -11/Scrapyard | Entered Materials 316 | -10/Materials | Build established: Mutant 500 | -10/Materials | Discovered new exit (range 10) 692 | -10/Materials | Identified exit to Subcaves 850 | -10/Materials | Discovered new exit (range 14) 891 | -10/Materials | Identified exit to Mines 1041 | -10/Materials | Discovered new exit (range 15) 1068 | -10/Materials | Core integrity fell below 50% 1284 | -10/Materials | Discovered new exit (range 16) 1566 | -10/Materials | Discovered new exit (range 9) 1616 | -10/Materials | Identified exit to Materials 1617 | -10/Materials | Entered another Materials area 1617 | -9/Materials | Evolved 2 slots: Utility x1, Weapon x1 1722 | -9/Materials | Discovered new exit (range 7) 1731 | -9/Materials | Identified exit to Storage 1736 | -9/Materials | Self-destructed Last Messages --------------- 01686_ Imp. Targeting Computer broken. 01686_ Overheating: Short circuit. 01687_ Overheating: Particle Cannon damaged (-81). 01687_ Overheating: Imp. Treads damaged (-54). 01687_ Overheating: Sml. Storage Unit damaged (-73). 01687_ Overheating: Particle Cannon damaged (-76). 01688_ R-06 Scavenger collects Lgt. Assault Rifle. 01689_ S-10 Pest destroyed. 01690_ Overheating: Core damaged (-60). 01691_ K-01 Serf collects debris. 01693_ Power failure, Ion Engine shutdown. 01696_ Overheating: Matter decay (-63). 01697_ K-01 Serf collects debris. 01722_ EXIT=FOUND 01725_ K-01 Serf collects debris. 01731_ EXIT=IDENTIFIED: STORAGE Map ----- +----------------------------------------------------+ | | | | | | | | | | | | | | | | | | | | | | | | | | | | | | | | | | | | | | | ?????????????????????????????????????????????????? | | ?????????????????????????????????????????????????? | | ?????????????????????????????????????????????????? | | ?????????????????????????????????????????????????? | | ?????????????????????#######?????????????????????? | | ?????????????????????#* ######????????????????? | | ?????????????????##### @ #????????????????? | | ?????????? > #????????????????? | | ?????????? ### #????????????????? | | ??????????? !!??????# ### ##????#########???? | | ?????????????????????###+###?# #?##### #???? | | ?????????????????????# T ??# #?# # #???? | | ?????????????????????# ?# #?# # """ #???? | | ?????????????????????# """ [##[#?# # """ #???? | | ?????????????????????# """=%+= #?# + """ #???? | | ?????????????????????# """ =##=#?# ############? | | ?????????????????????# ?# #?# | | ?????????????????????######??# #?# | | ??????????????????????????####/### ############? | | ??????????????????????????# # #???????????? | | ??????????????????????????# # #???????????? | | ??????????????????????????# + #???????????? | | ??????????????????????????# # #???????????? | | ??????????????????????????# # +???????????? | | ??????????????????????????# # #???????????? | | ??????????????????????????######## #???????????? | | ?????????????????????????????????# #???????????? | | ?????????????????????????????????# #???????????? | | ?????????????????????????????????# #???????????? | | ?????????????????????????????????? #???????????? | | ?????????????????????????????????? #???????????? | +----------------------------------------------------+ Best States ------------- Heat Dissipation 28 Energy Generation 10 Energy Capacity 250 Matter Stores 300 Matter Capacity 300 Sight Range 16 Terrain Scan Density 10 Evasion (%) 50 Targeting Accuracy 6 Recoil Reduction 2 Item Schematics ----------------- None Robot Schematics ------------------ None Fabricated ------------ Nothing Repaired ---------- Nothing Alien Tech Used ----------------- None Achievements -------------- None Challenges ------------ None Game ------ Seed AntigravForceScrapsphere Manual? 0 Play Time 00:11:23 Cumulative 26.1 hours Start 2025.10.03 @ 06:44:41 End 2025.10.04 @ 07:23:11 Sessions 3 Manual Loads 0 Difficulty Rogue Special Mode None Game No. 77 Rogue 71 Adventurer 6 Explorer 0 Win Type - Total 0 Types 0/0/0/0/0/0/0/0/0/0 Lore% 10 Gallery% 21 Achievement% 20 Wizard Run 0 Options --------- Layout 1 ASCII 0 Keyboard 0 Movement Numpad Keybinds 0 Fullscreen 1 Font 24/Smallcaps Map View 50x40 Zoom Use 0% Tactical HUD 1 Map Filters NONE Filters NONE Steam 1 RUN: 6cc7554e-e9d4-4528-aa5e-73f67b0cea67